[Event "Late-Titled-Tuesday-Blitz-June-18-2024"]
[Site "Chess.com"]
[Date "2024.06.18"]
[Round "5"]
[White "Matalon"]
[Black "arctic_t00"]
[Result "1-0"]
[WhiteElo "2503"]
[BlackElo "2720"]
[TimeControl "180+1"]
[EndTime "14:58:18 PDT"]
[Termination "Matalon won by resignation"]

1. e4 {[%clk 0:03:00.9]} 1... e5 {[%clk 0:02:58.8]} 2. Nf3 {[%clk 0:03:00.4]}
2... Nc6 {[%clk 0:02:59.4]} 3. Bb5 {[%clk 0:03:00.2]} 3... a6 {[%clk 0:02:59.5]}
4. Ba4 {[%clk 0:03:00.4]} 4... d6 {[%clk 0:02:59.8]} 5. Bxc6+ {[%clk 0:02:58.8]}
5... bxc6 {[%clk 0:02:59.9]} 6. d4 {[%clk 0:02:58.8]} 6... exd4 {[%clk
0:02:59.1]} 7. Nxd4 {[%clk 0:02:57.2]} 7... Bb7 {[%clk 0:02:40]} 8. O-O {[%clk
0:02:55]} 8... c5 {[%clk 0:02:39.8]} 9. Nf5 {[%clk 0:02:49.6]} 9... g6 {[%clk
0:02:31.3]} 10. Ng3 {[%clk 0:02:48]} 10... Bg7 {[%clk 0:02:28.6]} 11. Nc3 {[%clk
0:02:11.7]} 11... Ne7 {[%clk 0:02:26.1]} 12. Bf4 {[%clk 0:02:04.6]} 12... O-O
{[%clk 0:02:23.1]} 13. Qd2 {[%clk 0:02:03.7]} 13... Re8 {[%clk 0:02:23]} 14. Bh6
{[%clk 0:02:02.2]} 14... Bh8 {[%clk 0:02:22.8]} 15. f4 {[%clk 0:01:48.5]} 15...
Nc6 {[%clk 0:02:02.8]} 16. Kh1 {[%clk 0:01:40.2]} 16... Nd4 {[%clk 0:01:51.4]}
17. f5 {[%clk 0:01:36.4]} 17... Be5 {[%clk 0:01:18.7]} 18. Rae1 {[%clk
0:01:19.7]} 18... Qh4 {[%clk 0:01:12.3]} 19. Bf4 {[%clk 0:01:12]} 19... Bf6
{[%clk 0:01:03.6]} 20. Nd5 {[%clk 0:00:59.7]} 20... Bxd5 {[%clk 0:01:03.1]} 21.
exd5 {[%clk 0:01:00.6]} 21... Nxf5 {[%clk 0:00:44.2]} 22. Nxf5 {[%clk
0:00:56.2]} 22... gxf5 {[%clk 0:00:45.1]} 23. g3 {[%clk 0:00:49.8]} 23... Qg4
{[%clk 0:00:43.5]} 24. Qd3 {[%clk 0:00:47]} 24... a5 {[%clk 0:00:21.6]} 25. b3
{[%clk 0:00:38.3]} 25... Kg7 {[%clk 0:00:17.4]} 26. Kg2 {[%clk 0:00:38.2]} 26...
Qg6 {[%clk 0:00:05.8]} 27. Bd2 {[%clk 0:00:32.8]} 27... Rxe1 {[%clk 0:00:04.5]}
28. Bxe1 {[%clk 0:00:30.5]} 28... Re8 {[%clk 0:00:04.2]} 29. Bxa5 {[%clk
0:00:28.2]} 29... Re5 {[%clk 0:00:02.7]} 30. Bc3 {[%clk 0:00:23.5]} 30... Re4
{[%clk 0:00:02.7]} 31. Bxf6+ {[%clk 0:00:19.4]} 31... Qxf6 {[%clk 0:00:02.7]}
32. Qxe4 {[%clk 0:00:19.4]} 32... fxe4 {[%clk 0:00:01.9]} 33. Rxf6 {[%clk
0:00:19.4]} 33... Kxf6 {[%clk 0:00:02.8]} 34. a4 {[%clk 0:00:19.4]} 34... Ke5
{[%clk 0:00:02.7]} 35. c4 {[%clk 0:00:18.1]} 35... Kd4 {[%clk 0:00:01.2]} 36.
Kf2 {[%clk 0:00:18]} 36... Kd3 {[%clk 0:00:01.7]} 37. Ke1 {[%clk 0:00:18.1]}
37... Kc3 {[%clk 0:00:02.4]} 38. a5 {[%clk 0:00:17.8]} 38... Kxb3 {[%clk
0:00:03.3]} 39. a6 {[%clk 0:00:18.2]} 39... Kxc4 {[%clk 0:00:04.2]} 40. a7
{[%clk 0:00:18.8]} 40... Kxd5 {[%clk 0:00:05.1]} 41. a8=Q+ {[%clk 0:00:18.9]}
41... Kd4 {[%clk 0:00:06]} 42. Qc6 {[%clk 0:00:17.1]} 42... d5 {[%clk
0:00:05.1]} 43. Qxc7 {[%clk 0:00:17]} 43... c4 {[%clk 0:00:05.7]} 44. Qxf7
{[%clk 0:00:16.9]} 44... c3 {[%clk 0:00:06.1]} 45. Qf6+ {[%clk 0:00:16.6]} 45...
Kd3 {[%clk 0:00:06.6]} 46. Qe5 {[%clk 0:00:16.4]} 46... d4 {[%clk 0:00:06.7]}
47. Qb5+ {[%clk 0:00:14.6]} 47... Kc2 {[%clk 0:00:07.1]} 48. Qe2+ {[%clk
0:00:14.5]} 48... Kb3 {[%clk 0:00:07.1]} 49. Qxe4 {[%clk 0:00:15]} 49... c2
{[%clk 0:00:06.4]} 50. Kd2 {[%clk 0:00:14.8]} 50... Kb2 {[%clk 0:00:06.3]} 51.
Qxc2+ {[%clk 0:00:13.9]} 1-0

[Event "Late-Titled-Tuesday-Blitz-June-18-2024"]
[Site "Chess.com"]
[Date "2024.06.18"]
[Round "5"]
[White "NMJeevanK"]
[Black "Oleg_Papayan"]
[Result "1-0"]
[WhiteElo "2712"]
[BlackElo "2536"]
[TimeControl "180+1"]
[EndTime "14:58:22 PDT"]
[Termination "NMJeevanK won on time"]

1. Nf3 {[%clk 0:03:00.9]} 1... Nf6 {[%clk 0:02:59.6]} 2. b3 {[%clk 0:03:01]}
2... c5 {[%clk 0:02:56.3]} 3. Bb2 {[%clk 0:03:01.4]} 3... Nc6 {[%clk 0:02:56.7]}
4. c4 {[%clk 0:03:01.5]} 4... d5 {[%clk 0:02:45.3]} 5. e3 {[%clk 0:03:01.6]}
5... d4 {[%clk 0:02:32.6]} 6. exd4 {[%clk 0:02:55.5]} 6... cxd4 {[%clk
0:02:33.5]} 7. Bd3 {[%clk 0:02:51.6]} 7... e5 {[%clk 0:02:29]} 8. O-O {[%clk
0:02:50.2]} 8... Bd6 {[%clk 0:02:29.2]} 9. Re1 {[%clk 0:02:48.3]} 9... O-O
{[%clk 0:02:28.1]} 10. Ng5 {[%clk 0:02:46.5]} 10... h6 {[%clk 0:02:16.7]} 11.
Ne4 {[%clk 0:02:46.2]} 11... Nxe4 {[%clk 0:02:17.2]} 12. Bxe4 {[%clk 0:02:46.4]}
12... f5 {[%clk 0:02:13.5]} 13. Bd5+ {[%clk 0:02:36.6]} 13... Kh8 {[%clk
0:02:12.5]} 14. d3 {[%clk 0:02:37]} 14... Qh4 {[%clk 0:01:46.4]} 15. g3 {[%clk
0:02:35.1]} 15... Qg5 {[%clk 0:01:36.1]} 16. Bc1 {[%clk 0:02:30.3]} 16... Qg6
{[%clk 0:01:36.4]} 17. Nd2 {[%clk 0:02:27.5]} 17... Nb4 {[%clk 0:01:33]} 18. Nf3
{[%clk 0:02:20.3]} 18... Nxd5 {[%clk 0:01:25.8]} 19. cxd5 {[%clk 0:02:21.2]}
19... Qf6 {[%clk 0:01:00.4]} 20. Nh4 {[%clk 0:01:45.7]} 20... g5 {[%clk
0:00:54.9]} 21. Ng2 {[%clk 0:01:44.2]} 21... f4 {[%clk 0:00:46.2]} 22. Qh5
{[%clk 0:01:21.1]} 22... fxg3 {[%clk 0:00:34.7]} 23. hxg3 {[%clk 0:01:08]} 23...
Qxf2+ {[%clk 0:00:34.6]} 24. Kh2 {[%clk 0:01:05.5]} 24... Qf6 {[%clk 0:00:27]}
25. Bd2 {[%clk 0:00:54.6]} 25... Kg7 {[%clk 0:00:20.7]} 26. Rf1 {[%clk
0:00:46.3]} 26... Qg6 {[%clk 0:00:21]} 27. Qe2 {[%clk 0:00:42.2]} 27... Bf5
{[%clk 0:00:18.3]} 28. Rf3 {[%clk 0:00:37.5]} 28... e4 {[%clk 0:00:07.5]} 29.
dxe4 {[%clk 0:00:34.6]} 29... Bxe4 {[%clk 0:00:08.4]} 30. Rxf8 {[%clk
0:00:31.4]} 30... Rxf8 {[%clk 0:00:09.3]} 31. Re1 {[%clk 0:00:30.8]} 31... Bxd5
{[%clk 0:00:07.6]} 32. Kg1 {[%clk 0:00:21]} 32... Bxg3 {[%clk 0:00:06.4]} 33.
Rc1 {[%clk 0:00:12.6]} 33... Rf2 {[%clk 0:00:03.4]} 34. Qe7+ {[%clk 0:00:13.2]}
34... Rf7 {[%clk 0:00:03.7]} 35. Qe2 {[%clk 0:00:09.2]} 35... Bd6 {[%clk
0:00:03.8]} 36. Rf1 {[%clk 0:00:07.5]} 36... d3 {[%clk 0:00:03.2]} 37. Bc3+
{[%clk 0:00:06.6]} 37... Kh7 {[%clk 0:00:03.4]} 38. Rxf7+ {[%clk 0:00:04.7]}
38... Qxf7 {[%clk 0:00:04.3]} 39. Qxd3+ {[%clk 0:00:05.1]} 39... Kg8 {[%clk
0:00:02.9]} 40. Qd4 {[%clk 0:00:05.3]} 40... Kf8 {[%clk 0:00:02.7]} 41. Qh8+
{[%clk 0:00:05.4]} 41... Ke7 {[%clk 0:00:03.4]} 42. Qd4 {[%clk 0:00:06.1]} 42...
b6 {[%clk 0:00:03]} 43. Qe3+ {[%clk 0:00:06.5]} 43... Kd7 {[%clk 0:00:03.5]} 44.
Qd3 {[%clk 0:00:06.6]} 44... Bc5+ {[%clk 0:00:03.5]} 45. Bd4 {[%clk 0:00:07]}
45... Kc6 {[%clk 0:00:03.2]} 46. Bxc5 {[%clk 0:00:07.2]} 46... Kxc5 {[%clk
0:00:03.9]} 47. Ne3 {[%clk 0:00:07.7]} 47... Qf3 {[%clk 0:00:03]} 48. Qc3+
{[%clk 0:00:07.7]} 48... Kd6 {[%clk 0:00:03.2]} 49. Nc4+ {[%clk 0:00:08.1]}
49... Bxc4 {[%clk 0:00:03.2]} 50. Qxf3 {[%clk 0:00:08.3]} 1-0

[Event "Late-Titled-Tuesday-Blitz-June-18-2024"]
[Site "Chess.com"]
[Date "2024.06.18"]
[Round "5"]
[White "rasmussvane"]
[Black "FairChess_on_YouTube"]
[Result "0-1"]
[WhiteElo "2978"]
[BlackElo "3101"]
[TimeControl "180+1"]
[EndTime "14:58:23 PDT"]
[Termination "FairChess_on_YouTube won on time"]

1. Nf3 {[%clk 0:02:59.4]} 1... b5 {[%clk 0:02:58.6]} 2. e4 {[%clk 0:02:57.7]}
2... Bb7 {[%clk 0:02:58.9]} 3. Bxb5 {[%clk 0:02:56.8]} 3... Bxe4 {[%clk
0:02:58.7]} 4. O-O {[%clk 0:02:56.7]} 4... c6 {[%clk 0:02:59.1]} 5. Be2 {[%clk
0:02:49.1]} 5... Nf6 {[%clk 0:02:58.5]} 6. d4 {[%clk 0:02:46.9]} 6... e6 {[%clk
0:02:56.7]} 7. c4 {[%clk 0:02:46.4]} 7... Bxb1 {[%clk 0:02:52.5]} 8. Rxb1 {[%clk
0:02:46.3]} 8... Be7 {[%clk 0:02:53.1]} 9. Bf4 {[%clk 0:02:37]} 9... O-O {[%clk
0:02:52.8]} 10. Qc2 {[%clk 0:02:36.6]} 10... a5 {[%clk 0:02:48.1]} 11. Rfd1
{[%clk 0:02:23.3]} 11... Na6 {[%clk 0:02:46.3]} 12. a3 {[%clk 0:02:17.7]} 12...
Qb6 {[%clk 0:02:46.4]} 13. Qa4 {[%clk 0:01:57.6]} 13... Rfc8 {[%clk 0:02:33.7]}
14. c5 {[%clk 0:01:53.9]} 14... Qb7 {[%clk 0:02:25.8]} 15. Bc4 {[%clk
0:01:41.8]} 15... Nc7 {[%clk 0:02:20.9]} 16. Rd3 {[%clk 0:01:35.3]} 16... Ncd5
{[%clk 0:02:14.4]} 17. Bg3 {[%clk 0:01:19.7]} 17... Ne4 {[%clk 0:02:07.3]} 18.
Rb3 {[%clk 0:01:12.2]} 18... Qa7 {[%clk 0:02:07.5]} 19. Re1 {[%clk 0:01:09.8]}
19... Nxg3 {[%clk 0:02:03.4]} 20. hxg3 {[%clk 0:01:10.7]} 20... Nf6 {[%clk
0:01:46.5]} 21. Rd3 {[%clk 0:01:02.6]} 21... Rcb8 {[%clk 0:01:45.4]} 22. b3
{[%clk 0:01:02.2]} 22... Qb7 {[%clk 0:01:38.5]} 23. Ne5 {[%clk 0:01:00.8]} 23...
Bd8 {[%clk 0:01:32.1]} 24. g4 {[%clk 0:01:00.1]} 24... h6 {[%clk 0:01:29.8]} 25.
f4 {[%clk 0:00:57.3]} 25... Bc7 {[%clk 0:01:26.3]} 26. g5 {[%clk 0:00:49.8]}
26... hxg5 {[%clk 0:01:25.9]} 27. fxg5 {[%clk 0:00:50.7]} 27... Nd5 {[%clk
0:01:24.5]} 28. Bxd5 {[%clk 0:00:45]} 28... exd5 {[%clk 0:01:24]} 29. Nxd7
{[%clk 0:00:14.6]} 29... Re8 {[%clk 0:01:19.8]} 30. Ne5 {[%clk 0:00:11.5]} 30...
Re6 {[%clk 0:01:08.8]} 31. Rde3 {[%clk 0:00:11.4]} 31... Rb8 {[%clk 0:00:57.3]}
32. Nf3 {[%clk 0:00:05.1]} 32... Rxe3 {[%clk 0:00:53]} 33. Rxe3 {[%clk 0:00:06]}
33... Bf4 {[%clk 0:00:53.3]} 34. Re1 {[%clk 0:00:05.2]} 34... Bg3 {[%clk
0:00:36.7]} 35. Rf1 {[%clk 0:00:04.4]} 35... Qxb3 {[%clk 0:00:34.9]} 36. Qxc6
{[%clk 0:00:04.5]} 36... Qe3+ {[%clk 0:00:34.9]} 37. Kh1 {[%clk 0:00:05.1]}
37... Qd3 {[%clk 0:00:35]} 38. Kg1 {[%clk 0:00:03.4]} 38... Qe3+ {[%clk
0:00:23.4]} 39. Kh1 {[%clk 0:00:03.2]} 39... Qe4 {[%clk 0:00:18.8]} 40. g6
{[%clk 0:00:02.3]} 40... fxg6 {[%clk 0:00:17.2]} 41. Qd7 {[%clk 0:00:02.6]}
41... Rf8 {[%clk 0:00:06.7]} 42. c6 {[%clk 0:00:02.7]} 42... Rf5 {[%clk
0:00:06.9]} 43. Qd8+ {[%clk 0:00:01.2]} 43... Kh7 {[%clk 0:00:04.7]} 44. Ng5+
{[%clk 0:00:01.8]} 44... Kh6 {[%clk 0:00:05.4]} 45. Nf7+ {[%clk 0:00:01]} 45...
Rxf7 {[%clk 0:00:04.4]} 0-1

[Event "Late-Titled-Tuesday-Blitz-June-18-2024"]
[Site "Chess.com"]
[Date "2024.06.18"]
[Round "5"]
[White "Supergiuly"]
[Black "edgarhay012"]
[Result "0-1"]
[WhiteElo "2353"]
[BlackElo "2717"]
[TimeControl "180+1"]
[EndTime "14:58:26 PDT"]
[Termination "edgarhay012 won on time"]

1. e4 {[%clk 0:02:22.1]} 1... c5 {[%clk 0:02:56.7]} 2. Nf3 {[%clk 0:02:19.8]}
2... e6 {[%clk 0:02:56]} 3. d4 {[%clk 0:02:17.6]} 3... cxd4 {[%clk 0:02:56.9]}
4. Nxd4 {[%clk 0:02:18.1]} 4... Nf6 {[%clk 0:02:57.5]} 5. Nc3 {[%clk 0:02:18]}
5... Nc6 {[%clk 0:02:57.8]} 6. Be3 {[%clk 0:02:17.3]} 6... d5 {[%clk 0:02:57.3]}
7. exd5 {[%clk 0:02:17.1]} 7... Nxd5 {[%clk 0:02:57]} 8. Nxd5 {[%clk 0:02:16.2]}
8... exd5 {[%clk 0:02:56.9]} 9. c3 {[%clk 0:02:10.6]} 9... Be7 {[%clk
0:02:56.5]} 10. Bb5 {[%clk 0:02:09.7]} 10... Bd7 {[%clk 0:02:56.3]} 11. O-O
{[%clk 0:02:08.1]} 11... O-O {[%clk 0:02:55.9]} 12. Qb3 {[%clk 0:02:04.2]} 12...
a6 {[%clk 0:02:50.2]} 13. Bd3 {[%clk 0:02:01.1]} 13... Ne5 {[%clk 0:02:37]} 14.
Bc2 {[%clk 0:01:57.4]} 14... Bc6 {[%clk 0:02:35.2]} 15. Rad1 {[%clk 0:01:53.4]}
15... Bf6 {[%clk 0:02:32.9]} 16. Bb1 {[%clk 0:01:41.2]} 16... Qc7 {[%clk
0:02:29]} 17. h3 {[%clk 0:01:33.5]} 17... g6 {[%clk 0:02:27.8]} 18. Qc2 {[%clk
0:01:10.5]} 18... Rfe8 {[%clk 0:02:27.3]} 19. Rfe1 {[%clk 0:01:08.9]} 19... Rad8
{[%clk 0:02:24]} 20. a3 {[%clk 0:01:04.6]} 20... Nc4 {[%clk 0:02:20.6]} 21. Ba2
{[%clk 0:00:29.7]} 21... Bd7 {[%clk 0:02:11.4]} 22. Bxc4 {[%clk 0:00:28.3]}
22... dxc4 {[%clk 0:02:12.3]} 23. Rd2 {[%clk 0:00:26]} 23... Bc8 {[%clk
0:02:10.3]} 24. Red1 {[%clk 0:00:24.8]} 24... Rd5 {[%clk 0:02:08.5]} 25. Nf3
{[%clk 0:00:18.5]} 25... Rxd2 {[%clk 0:01:58.5]} 26. Rxd2 {[%clk 0:00:18.7]}
26... b5 {[%clk 0:01:56.2]} 27. Rd5 {[%clk 0:00:17.9]} 27... Be6 {[%clk
0:01:54.1]} 28. Rd1 {[%clk 0:00:17.6]} 28... Bf5 {[%clk 0:01:53.3]} 29. Qe2
{[%clk 0:00:16.9]} 29... Bd3 {[%clk 0:01:43.8]} 30. Qd2 {[%clk 0:00:17.2]} 30...
Qb7 {[%clk 0:01:39.7]} 31. Ne1 {[%clk 0:00:17.2]} 31... Bf5 {[%clk 0:01:38.6]}
32. Nf3 {[%clk 0:00:16.5]} 32... Be4 {[%clk 0:01:36.6]} 33. Ne1 {[%clk
0:00:16.3]} 33... a5 {[%clk 0:01:29.4]} 34. Bd4 {[%clk 0:00:16.2]} 34... Be7
{[%clk 0:01:19.9]} 35. f3 {[%clk 0:00:14.6]} 35... Bc6 {[%clk 0:01:17.6]} 36.
Qh6 {[%clk 0:00:14.4]} 36... Bf8 {[%clk 0:01:17.5]} 37. Qf4 {[%clk 0:00:13.9]}
37... Qe7 {[%clk 0:01:13.7]} 38. Nc2 {[%clk 0:00:13.2]} 38... Qd6 {[%clk
0:00:59.9]} 39. Qg5 {[%clk 0:00:07.9]} 39... h6 {[%clk 0:00:52.5]} 40. Qc1
{[%clk 0:00:07]} 40... Qg3 {[%clk 0:00:50]} 41. Bf2 {[%clk 0:00:06.9]} 41... Qc7
{[%clk 0:00:47.9]} 42. Nd4 {[%clk 0:00:07.3]} 42... Bd7 {[%clk 0:00:47.4]} 43.
Be3 {[%clk 0:00:05.9]} 43... h5 {[%clk 0:00:33]} 44. Bf4 {[%clk 0:00:05.8]}
44... Qc5 {[%clk 0:00:33.2]} 45. Qd2 {[%clk 0:00:05.9]} 45... Bc8 {[%clk
0:00:32.2]} 46. Kh2 {[%clk 0:00:04.1]} 46... Bg7 {[%clk 0:00:30.6]} 47. Nc2
{[%clk 0:00:04]} 47... Bf5 {[%clk 0:00:28.2]} 48. Ne3 {[%clk 0:00:02.8]} 48...
Bd3 {[%clk 0:00:27.6]} 49. Nf1 {[%clk 0:00:02]} 49... Re2 {[%clk 0:00:24.6]} 50.
Qc1 {[%clk 0:00:01.7]} 50... Rc2 {[%clk 0:00:15.7]} 0-1

[Event "Late-Titled-Tuesday-Blitz-June-18-2024"]
[Site "Chess.com"]
[Date "2024.06.18"]
[Round "5"]
[White "GoltsevDmitry2000"]
[Black "ATM622"]
[Result "1/2-1/2"]
[WhiteElo "2711"]
[BlackElo "2547"]
[TimeControl "180+1"]
[EndTime "14:58:31 PDT"]
[Termination "Game drawn by stalemate"]

1. e4 {[%clk 0:02:58.7]} 1... c6 {[%clk 0:02:57.7]} 2. e5 {[%clk 0:02:58.6]}
2... d5 {[%clk 0:02:56.1]} 3. exd6 {[%clk 0:02:59.5]} 3... exd6 {[%clk
0:02:56.3]} 4. d4 {[%clk 0:03:00.4]} 4... d5 {[%clk 0:02:56.4]} 5. Nf3 {[%clk
0:03:01.3]} 5... Nf6 {[%clk 0:02:56.5]} 6. c4 {[%clk 0:03:02.2]} 6... Bb4+
{[%clk 0:02:55.2]} 7. Nc3 {[%clk 0:03:02.6]} 7... O-O {[%clk 0:02:55.1]} 8. Be2
{[%clk 0:03:03.1]} 8... h6 {[%clk 0:02:54.5]} 9. O-O {[%clk 0:03:03.1]} 9... Re8
{[%clk 0:02:54.8]} 10. Bf4 {[%clk 0:03:02.8]} 10... Bg4 {[%clk 0:02:54]} 11. h3
{[%clk 0:03:02.8]} 11... Bh5 {[%clk 0:02:53.7]} 12. a3 {[%clk 0:03:00.3]} 12...
Bd6 {[%clk 0:02:52.8]} 13. Ne5 {[%clk 0:02:56.6]} 13... Bxe2 {[%clk 0:02:52.2]}
14. Nxe2 {[%clk 0:02:51.4]} 14... dxc4 {[%clk 0:02:44.5]} 15. Nxc4 {[%clk
0:02:49.2]} 15... Bxf4 {[%clk 0:02:44.4]} 16. Nxf4 {[%clk 0:02:50.1]} 16... Qc7
{[%clk 0:02:37.9]} 17. Nh5 {[%clk 0:02:42.7]} 17... Nbd7 {[%clk 0:02:32.5]} 18.
Rc1 {[%clk 0:02:40]} 18... Rad8 {[%clk 0:02:27.9]} 19. Ne3 {[%clk 0:02:37.1]}
19... Nxh5 {[%clk 0:02:26.8]} 20. Qxh5 {[%clk 0:02:38]} 20... Nf6 {[%clk
0:02:27.1]} 21. Qh4 {[%clk 0:02:38.2]} 21... Re4 {[%clk 0:02:26.1]} 22. Ng4
{[%clk 0:02:29.3]} 22... Nxg4 {[%clk 0:02:23.4]} 23. hxg4 {[%clk 0:02:30.2]}
23... Rdxd4 {[%clk 0:02:20.6]} 24. f3 {[%clk 0:02:26.3]} 24... Re2 {[%clk
0:02:20.4]} 25. Rf2 {[%clk 0:02:21.8]} 25... Rxf2 {[%clk 0:02:12.3]} 26. Qxf2
{[%clk 0:02:21.5]} 26... Qd8 {[%clk 0:02:11.8]} 27. Re1 {[%clk 0:02:10.1]} 27...
Rd1 {[%clk 0:02:08.4]} 28. Rxd1 {[%clk 0:02:08]} 28... Qxd1+ {[%clk 0:02:08.2]}
29. Kh2 {[%clk 0:02:08.9]} 29... Qd6+ {[%clk 0:02:08.2]} 30. g3 {[%clk
0:02:08.5]} 30... b6 {[%clk 0:02:06.9]} 31. Qe3 {[%clk 0:02:07.7]} 31... Qd7
{[%clk 0:02:02.7]} 32. Qe5 {[%clk 0:02:05]} 32... c5 {[%clk 0:02:00.6]} 33. f4
{[%clk 0:01:43.3]} 33... Qxg4 {[%clk 0:01:43.7]} 34. Qe8+ {[%clk 0:01:42.9]}
34... Kh7 {[%clk 0:01:43.9]} 35. Qxf7 {[%clk 0:01:43.5]} 35... h5 {[%clk
0:01:27.3]} 36. Qe7 {[%clk 0:01:32.4]} 36... h4 {[%clk 0:01:14.3]} 37. Qe4+
{[%clk 0:00:57.9]} 37... Qg6 {[%clk 0:01:12.8]} 38. f5 {[%clk 0:00:11.4]} 38...
Qxg3+ {[%clk 0:01:11.1]} 39. Kh1 {[%clk 0:00:12.1]} 39... Kh6 {[%clk 0:00:18.2]}
40. Qe6+ {[%clk 0:00:11.9]} 40... Kg5 {[%clk 0:00:18.3]} 41. Qg6+ {[%clk
0:00:09.4]} 41... Kf4 {[%clk 0:00:18.1]} 42. Qd6+ {[%clk 0:00:09.5]} 42... Kxf5
{[%clk 0:00:17.6]} 43. Qd7+ {[%clk 0:00:09.4]} 43... Ke4 {[%clk 0:00:17]} 44.
Qe6+ {[%clk 0:00:08.4]} 44... Kd3 {[%clk 0:00:16.5]} 45. Qb3+ {[%clk 0:00:07.9]}
45... Kd2 {[%clk 0:00:16.1]} 46. Qd5+ {[%clk 0:00:08]} 46... Kc1 {[%clk
0:00:15.6]} 47. Qc4+ {[%clk 0:00:07.1]} 47... Kb1 {[%clk 0:00:15.1]} 48. Qf1+
{[%clk 0:00:06.5]} 48... Ka2 {[%clk 0:00:14.5]} 49. Qc4+ {[%clk 0:00:06.7]}
49... Kxb2 {[%clk 0:00:14]} 50. Qe2+ {[%clk 0:00:07]} 50... Kxa3 {[%clk
0:00:13.9]} 51. Qb2+ {[%clk 0:00:05.9]} 51... Ka4 {[%clk 0:00:09.5]} 52. Qb5+
{[%clk 0:00:05.6]} 52... Ka3 {[%clk 0:00:09.3]} 53. Qb2+ {[%clk 0:00:06]} 53...
Ka4 {[%clk 0:00:09.5]} 54. Qb4+ {[%clk 0:00:06.1]} 54... cxb4 {[%clk 0:00:08.7]}
1/2-1/2

[Event "Late-Titled-Tuesday-Blitz-June-18-2024"]
[Site "Chess.com"]
[Date "2024.06.18"]
[Round "5"]
[White "chesselephant"]
[Black "nochewycandy"]
[Result "1-0"]
[WhiteElo "2585"]
[BlackElo "2795"]
[TimeControl "180+1"]
[EndTime "14:58:32 PDT"]
[Termination "chesselephant won by resignation"]

1. d4 {[%clk 0:03:00.9]} 1... g6 {[%clk 0:02:51.5]} 2. c4 {[%clk 0:02:59.7]}
2... Bg7 {[%clk 0:02:52]} 3. Nc3 {[%clk 0:02:58.4]} 3... d6 {[%clk 0:02:52.4]}
4. Nf3 {[%clk 0:02:58.7]} 4... Nf6 {[%clk 0:02:48.9]} 5. e4 {[%clk 0:02:58.6]}
5... O-O {[%clk 0:02:49.6]} 6. Be2 {[%clk 0:02:58.6]} 6... Na6 {[%clk
0:02:50.2]} 7. O-O {[%clk 0:02:58.6]} 7... e5 {[%clk 0:02:49.8]} 8. Be3 {[%clk
0:02:57.7]} 8... Ng4 {[%clk 0:02:49]} 9. Bg5 {[%clk 0:02:57.9]} 9... f6 {[%clk
0:02:49.6]} 10. Bc1 {[%clk 0:02:57.9]} 10... c6 {[%clk 0:02:46.8]} 11. dxe5
{[%clk 0:02:43.9]} 11... dxe5 {[%clk 0:02:45.5]} 12. Qb3 {[%clk 0:02:30.7]}
12... Kh8 {[%clk 0:02:36.3]} 13. Rd1 {[%clk 0:02:30.1]} 13... Qe7 {[%clk
0:02:35.3]} 14. h3 {[%clk 0:02:00]} 14... Nh6 {[%clk 0:02:34.5]} 15. Be3 {[%clk
0:01:56.5]} 15... Re8 {[%clk 0:02:21.1]} 16. Rac1 {[%clk 0:01:45.4]} 16... Nc5
{[%clk 0:02:21.1]} 17. Qa3 {[%clk 0:01:40]} 17... Ne6 {[%clk 0:02:15.7]} 18.
Qxe7 {[%clk 0:01:36.8]} 18... Rxe7 {[%clk 0:02:15.9]} 19. b4 {[%clk 0:01:21.5]}
19... Nf7 {[%clk 0:02:13]} 20. c5 {[%clk 0:01:16.3]} 20... f5 {[%clk 0:02:05.2]}
21. Bc4 {[%clk 0:01:11.3]} 21... Bf6 {[%clk 0:01:53.5]} 22. Rc2 {[%clk
0:01:02.6]} 22... Kg7 {[%clk 0:01:50]} 23. a4 {[%clk 0:00:57.2]} 23... f4 {[%clk
0:01:41.6]} 24. Bc1 {[%clk 0:00:56.2]} 24... b6 {[%clk 0:01:42.2]} 25. cxb6
{[%clk 0:00:53]} 25... axb6 {[%clk 0:01:42.4]} 26. Bb3 {[%clk 0:00:44.3]} 26...
g5 {[%clk 0:01:31.4]} 27. b5 {[%clk 0:00:44.2]} 27... cxb5 {[%clk 0:01:30]} 28.
axb5 {[%clk 0:00:41.5]} 28... Nc5 {[%clk 0:01:23.4]} 29. Bd5 {[%clk 0:00:39.6]}
29... Ra5 {[%clk 0:01:20.9]} 30. Bc6 {[%clk 0:00:39.9]} 30... Be6 {[%clk
0:01:18.2]} 31. Nd5 {[%clk 0:00:34.8]} 31... Rea7 {[%clk 0:01:18.6]} 32. Rcd2
{[%clk 0:00:18.6]} 32... Nxe4 {[%clk 0:01:17.8]} 33. Nxf6 {[%clk 0:00:16.1]}
33... Nxf6 {[%clk 0:01:15.9]} 34. Bb2 {[%clk 0:00:16.4]} 34... Ra2 {[%clk
0:01:08.1]} 35. Bxe5 {[%clk 0:00:13.3]} 35... Rxd2 {[%clk 0:01:07.3]} 36. Rxd2
{[%clk 0:00:11.2]} 36... Nxe5 {[%clk 0:01:05.9]} 37. Nxe5 {[%clk 0:00:12.1]}
37... Ra1+ {[%clk 0:01:05.5]} 38. Kh2 {[%clk 0:00:12.4]} 38... Re1 {[%clk
0:01:06.2]} 39. Nf3 {[%clk 0:00:07.4]} 39... g4 {[%clk 0:01:02.3]} 40. Nd4
{[%clk 0:00:07.8]} 40... h5 {[%clk 0:00:54.7]} 41. Re2 {[%clk 0:00:06.2]} 41...
Rxe2 {[%clk 0:00:54.7]} 42. Nxe2 {[%clk 0:00:07.1]} 42... f3 {[%clk 0:00:40.6]}
43. gxf3 {[%clk 0:00:07.4]} 43... gxh3 {[%clk 0:00:41.1]} 44. Nf4 {[%clk
0:00:08]} 44... Bc4 {[%clk 0:00:35.6]} 45. Nxh3 {[%clk 0:00:08.1]} 45... Kg6
{[%clk 0:00:34.3]} 46. Nf4+ {[%clk 0:00:07.8]} 46... Kf5 {[%clk 0:00:35]} 47.
Ng2 {[%clk 0:00:05.7]} 47... Ng8 {[%clk 0:00:30.9]} 48. Ne3+ {[%clk 0:00:06]}
48... Kf4 {[%clk 0:00:31.2]} 49. Nxc4 {[%clk 0:00:06.9]} 49... Ne7 {[%clk
0:00:30.8]} 50. Nxb6 {[%clk 0:00:07]} 50... Ng6 {[%clk 0:00:29.2]} 51. Nd5+
{[%clk 0:00:07.5]} 51... Ke5 {[%clk 0:00:29.2]} 52. Ne3 {[%clk 0:00:06]} 52...
Kd6 {[%clk 0:00:29.3]} 53. Kg3 {[%clk 0:00:06.3]} 53... h4+ {[%clk 0:00:29.6]}
54. Kg4 {[%clk 0:00:06.7]} 54... Kc7 {[%clk 0:00:26.3]} 55. f4 {[%clk
0:00:06.9]} 55... h3 {[%clk 0:00:23.4]} 56. f5 {[%clk 0:00:06.6]} 56... Ne5+
{[%clk 0:00:20.8]} 57. Kxh3 {[%clk 0:00:06.4]} 57... Nd3 {[%clk 0:00:20.5]} 58.
Kg4 {[%clk 0:00:06.3]} 58... Nxf2+ {[%clk 0:00:20.9]} 59. Kf4 {[%clk 0:00:06.5]}
59... Nd3+ {[%clk 0:00:21.8]} 60. Ke4 {[%clk 0:00:06.9]} 60... Nf2+ {[%clk
0:00:22.3]} 61. Ke5 {[%clk 0:00:07.3]} 61... Nd3+ {[%clk 0:00:22]} 62. Ke6
{[%clk 0:00:08]} 62... Nf4+ {[%clk 0:00:21.9]} 63. Ke7 {[%clk 0:00:07.9]} 63...
Nh5 {[%clk 0:00:19.2]} 64. Nd5+ {[%clk 0:00:08.3]} 64... Kc8 {[%clk 0:00:19.5]}
65. f6 {[%clk 0:00:08.3]} 1-0